fUSD/lending_fUSD_20250312
["ID","MTS","AMOUNT","RATE_DAILY","PERIOD"]
[356017069,1741799446873,-150.0,0.00027983,2]
[356017070,1741799446882,-150.0,0.00027987,2]
[356017071,1741799446891,-150.0,0.00027987,2]
[356017072,1741799446900,-150.0,0.00027992,2]
[356017073,1741799446910,-1853.25817768,0.00027998,61]
[356017074,1741799446919,-23310.27226781,0.00027998,31]
[356017075,1741799446928,-150.0,0.00027998,2]
[356017076,1741799446938,-128447.24147054,0.00028,2]
[356017077,1741799446947,-1607.90124632,0.00028,2]
[356017078,1741799446956,-1000.0,0.00028,2]
[356017079,1741799446965,-322.00234117,0.00028002,2]
[356017080,1741799446975,-150.0,0.00028005,2]
[356017081,1741799446984,-150.0,0.00028009,2]
[356017082,1741799446993,-1000.0,0.00028016,2]
[356017083,1741799447002,-150.0,0.00028017,2]
[356017084,1741799447011,-150.0,0.00028017,2]
[356017085,1741799447023,-1641.0,0.00028028,2]
[356017086,1741799447033,-150.0,0.00028058,2]
[356017087,1741799447042,-150.0,0.00028061,2]
[356017088,1741799447052,-150.0,0.00028061,2]
[356017089,1741799447063,-150.0,0.00028077,2]
[356017090,1741799447072,-150.0,0.00028077,2]
[356017091,1741799447081,-150.0,0.00028103,2]
[356017092,1741799447090,-150.0,0.00028106,2]
[356017093,1741799447099,-1000.0,0.00028106,2]
[356017094,1741799447109,-150.0,0.0002812,2]
[356017095,1741799447118,-150.0,0.00028123,2]
[356017096,1741799447127,-500.0,0.00028124,7]
[356017097,1741799447137,-150.0,0.0002813,2]
[356017098,1741799447146,-150.0,0.00028142,2]
[356017099,1741799447155,-1000.0,0.00028155,2]
[356017100,1741799447164,-150.0,0.0002816,2]
[356017101,1741799447174,-2110.0,0.00028172,2]
[356017102,1741799447183,-154.91361423,0.00028174,2]
[356017103,1741799447193,-1000.0,0.00028194,2]
[356017104,1741799447202,-1000.0,0.00028196,2]
[356017105,1741799447212,-3000.0,0.000282,2]
[356017106,1741799447221,-150.0,0.000282,2]
[356017107,1741799447230,-1000.0,0.00028214,2]
[356017108,1741799447239,-350.0,0.00028219,2]
[356017109,1741799447248,-1000.0,0.00028222,2]
[356017110,1741799447258,-150.0,0.00028238,2]
[356017111,1741799447267,-150.0,0.00028242,2]
[356017112,1741799447277,-200.0,0.00028244,2]
[356017113,1741799447286,-200.0,0.00028244,2]
[356017114,1741799447295,-481.75,0.00028246,2]
[356017115,1741799447310,-506.37093959,0.00028249,2]
[356017116,1741799447321,-150.0,0.00028266,2]
[356017117,1741799447331,-150.0,0.00028291,2]
[356017118,1741799447340,-150.0,0.00028291,2]
[356017119,1741799447350,-150.0,0.00028298,2]
[356017120,1741799447359,-150.0,0.00028312,2]
[356017121,1741799447369,-1641.0,0.00028314,2]
[356017122,1741799447378,-1000.0,0.00028321,2]
[356017123,1741799447388,-1000.0,0.00028329,2]
[356017124,1741799447398,-150.0,0.00028338,2]
[356017125,1741799447407,-1000.0,0.00028345,2]
[356017126,1741799447417,-2000.0,0.0002835,4]
[356017127,1741799447427,-150.0,0.00028393,2]
[356017128,1741799447436,-150.0,0.00028397,2]
[356017129,1741799447445,-1000.0,0.000284,2]
[356017130,1741799447455,-150.0,0.00028407,2]
[356017131,1741799447465,-150.0,0.00028409,2]
[356017132,1741799447474,-845.83055699,0.00028432,2]
[356017133,1741799447484,-1000.0,0.00028439,2]
[356017134,1741799447493,-150.0,0.00028452,2]
[356017135,1741799447503,-3615.98628064,0.00028462,5]
[356017136,1741799447512,-150.0,0.00028478,2]
[356017137,1741799447522,-150.0,0.00028486,2]
[356017138,1741799447532,-150.0,0.00028488,2]
[356017139,1741799447542,-350.0,0.00028493,2]
[356017140,1741799447556,-1000.0,0.00028495,2]
[356017141,1741799447568,-200.0,0.000285,17]
[356017142,1741799447578,-9600.0,0.000285,10]
[356017143,1741799447588,-350.0,0.000285,7]
[356017144,1741799447598,-350.0,0.000285,7]
[356017145,1741799447609,-425.155,0.00028525,2]
[356017146,1741799447619,-200.0,0.00028526,2]
[356017147,1741799447628,-200.0,0.00028526,2]
[356017148,1741799447638,-151.0,0.00028528,7]
[356017149,1741799447648,-900.0,0.00028528,10]
[356017150,1741799447658,-900.0,0.00028528,10]
[356017151,1741799447668,-900.0,0.00028528,10]
[356017152,1741799447678,-900.0,0.00028528,10]
[356017153,1741799447688,-900.0,0.00028528,10]
[356017154,1741799447698,-900.0,0.00028528,10]
[356017155,1741799447708,-900.0,0.00028528,10]
[356017156,1741799447718,-900.0,0.00028528,10]
[356017157,1741799447727,-900.0,0.00028528,10]
[356017158,1741799447736,-900.0,0.00028528,10]
[356017159,1741799447746,-2000.0,0.00028529,2]
[356017160,1741799447756,-1975.3936,0.00028529,2]
[356017161,1741799447765,-150.0,0.00028534,2]
[356017162,1741799447775,-150.0,0.00028545,2]
[356017163,1741799447784,-150.0,0.00028555,2]
[356017164,1741799447794,-342.74734092,0.0002856,5]
[356017165,1741799447807,-698.78,0.00028573,120]
[356017166,1741799447816,-150.0,0.00028579,2]
[356017167,1741799447825,-3943.25060797,0.00028582,120]
[356017168,1741799447834,-1000.0,0.00028582,2]
[356017169,1741799447844,-200.0,0.00028582,2]
[356017170,1741799447853,-150.0,0.0002859,2]
[356017171,1741799447862,-150.0,0.00028594,2]
[356017172,1741799447871,-204.72258017,0.00028597,2]
[356017173,1741799447880,-150.0,0.00028597,2]
[356017174,1741799447891,-332.35904996,0.00028597,2]
[356017175,1741799447900,-506.37093959,0.00028597,2]
[356017176,1741799447910,-1641.0,0.000286,2]
[356017177,1741799447919,-385.78462427,0.000286,2]
[356017178,1741799447928,-1900.0,0.000286,10]
[356017179,1741799447938,-1000.0,0.00028601,2]
[356017180,1741799447947,-150.0,0.00028602,2]
[356017181,1741799447956,-150.0,0.00028607,2]
[356017182,1741799448164,-150.0,0.00028607,2]
[356017183,1741799448174,-150.0,0.0002861,2]
[356017184,1741799448184,-150.0,0.00028612,2]
[356017185,1741799448193,-1270.74343083,0.00028614,2]
[356017186,1741799448203,-150.0,0.00028615,2]
[356017187,1741799448212,-2080.3551859,0.00028621,2]
[356017188,1741799448222,-150.0,0.00028621,2]
[356017189,1741799448231,-150.0,0.00028636,2]
[356017190,1741799448241,-150.0,0.00028643,2]
[356017191,1741799448252,-863.11411439,0.00028645,2]
[356017192,1741799448261,-150.0,0.00028648,2]
[356017193,1741799448270,-1000.0,0.00028658,2]
[356017194,1741799448280,-153.77,0.00028662,2]
[356017195,1741799448290,-150.0,0.00028663,2]
[356017196,1741799448301,-1000.0,0.00028668,2]
[356017197,1741799448315,-250000.0,0.0002867,30]
[356017198,1741799448325,-207.0,0.0002867,2]
[356017199,1741799448335,-207.0,0.0002867,30]
[356017200,1741799448346,-219.0,0.0002867,2]
[356017201,1741799448356,-264.0,0.0002867,2]
[356017202,1741799448365,-229.0,0.0002867,2]
[356017203,1741799448375,-206.0,0.0002867,2]
[356017204,1741799448385,-1062.0,0.00028672,5]
[356017205,1741799448395,-2110.0,0.00028672,2]
[356017206,1741799448404,-407.6645542,0.00028676,2]
[356017207,1741799448414,-365.657249,0.00028676,2]
[356017208,1741799448423,-323.6499438,0.00028676,2]
[356017209,1741799448434,-281.6426385,0.00028676,2]
[356017210,1741799448443,-239.6353333,0.00028676,2]
[356017211,1741799448453,-197.6280281,0.00028676,2]
[356017212,1741799448463,-651.21928317,0.00028676,2]
[356017213,1741799448472,-666.0,0.00028696,10]
[356017214,1741799448482,-50000.0,0.00028696,31]
[356017215,1741799448492,-263.52889134,0.00028696,10]
[356017216,1741799448501,-151.0,0.00028696,7]
[356017217,1741799448511,-350.0,0.00028696,7]
[356017218,1741799448521,-350.0,0.00028696,7]
[356017219,1741799448531,-1530.40085142,0.00028697,15]
[356017220,1741799448542,-1094.90772933,0.00028697,2]
[356017221,1741799448554,-57480.94284305,0.00028697,2]
[356017222,1741799448564,-2449252.58876393,0.00028697,30]
[356017223,1741799448891,-2177.6,0.00028697,30]
[356017224,1741799448932,-293.00606398,0.00028697,30]
[356017225,1741799448944,-10377.59079056,0.00028697,30]
[356017226,1741799448955,-407.98088,0.00028697,30]
[356017227,1741799448983,-3559.08109123,0.00028697,30]
[356017228,1741799448995,-885.56007771,0.00028697,30]
[356017229,1741799449021,-1135.96567531,0.00028697,30]
[356017230,1741799449033,-5532.59180137,0.00028697,30]
[356017231,1741799449046,-3399.18916828,0.00028697,30]
[356017232,1741799449064,-311.6,0.00028697,30]
[356017233,1741799449075,-791.5796781,0.00028697,30]
[356017234,1741799449090,-1056.12087,0.00028697,30]
[356017235,1741799449103,-2643.30290429,0.00028697,30]
[356017236,1741799449115,-4389.90889013,0.00028697,30]
[356017237,1741799449443,-151.0,0.000248,7]
[356017238,1741799449453,-268.61,0.00028697,30]
[356017239,1741799449892,-979.18872066,0.00028697,30]
[356017240,1741799449918,-299.96498578,0.00028697,30]
[356017241,1741799449929,-17155.65647252,0.00028697,30]
[356017242,1741799449940,-337.27249606,0.00028697,30]
[356017243,1741799449953,-2441.49257263,0.00028697,30]
[356017244,1741799450080,-386.51823076,0.000104,2]
[356017245,1741799450092,-285.78176924,0.00010441,2]
[356017246,1741799450104,-100.73646152,0.00010441,2]
[356017247,1741799450115,-386.51823076,0.00010807,2]
[356017248,1741799450124,-386.51823076,0.00010959,2]
[356017249,1741799450134,-386.51823076,0.0001147,2]
[356017250,1741799450144,-5189.7088462,0.00028697,30]
[356017251,1741799450163,-993.06961683,0.00028697,30]
[356017252,1741799450176,-469.025,0.00028697,30]
[356017253,1741799451063,2091.86739721,0.00027397,120]
[356017278,1741800589390,278.46,8.889e-05,2]
[356017291,1741800632140,-320.29041264,9e-05,2]
[356017292,1741800632205,-229.70958736,9e-05,2]
[356017293,1741800632214,-400.0,9.6e-05,3]
[356017294,1741800632223,-900.0,9.7e-05,3]
[356017295,1741800632232,-1258.01053675,9.8e-05,3]
[356017296,1741800632243,-41.98946325,9.8e-05,3]
[356017297,1741800632252,-271.2,9.89e-05,2]
[356017298,1741800632261,-162.78603675,9.899e-05,2]
[356017299,1741800632272,-137.21396325,9.899e-05,2]
[356017300,1741800632281,-150.0,9.899e-05,2]
[356017301,1741800632290,-3881.57898828,9.9e-05,2]
[356017302,1741800632301,-1519.21801172,9.9e-05,2]
[356017303,1741800632310,-1440.77346552,9.9e-05,2]
[356017304,1741800632350,-1301.99487632,9.9e-05,2]
[356017305,1741800632361,-4407.26800177,9.9e-05,2]
[356017306,1741800632373,-483.74719543,9.9e-05,2]
[356017307,1741800632431,-419.22518436,9.9e-05,2]
[356017312,1741800632578,-2072.32262322,9.9e-05,2]
[356017314,1741800632589,-36231.00364838,9.9e-05,2]
[356017315,1741800632600,-1800.0,9.9e-05,3]
[356017316,1741800632609,-150.0,9.9e-05,2]
[356017317,1741800632618,-33474.97157339,9.998e-05,2]
[356017318,1741800632628,-500.0,9.999e-05,2]
[356017319,1741800632637,-169.64262674,9.999e-05,2]
[356017320,1741800632646,-500.0,9.999e-05,2]
[356017321,1741800632655,-518.04375454,9.999e-05,2]
[356017323,1741800632664,-500.0,9.999e-05,2]
[356017325,1741800632675,-500.0,9.999e-05,2]
[356017327,1741800632685,-500.0,9.999e-05,2]
[356017329,1741800632694,-500.0,9.999e-05,2]
[356017331,1741800632703,-500.0,9.999e-05,2]
[356017332,1741800632712,-314.04,9.999e-05,2]
[356017334,1741800632721,-46033.17081234,0.0001,2]
[356017335,1741800632758,-840.0,0.0001,2]
[356017348,1741800638005,-2545.50539138,0.0001,2]
[356017349,1741800638016,-12000.00000135,0.0001,2]
[356017351,1741800638116,-978.85,0.0001,2]
[356017352,1741800638227,-15733.2,0.0001,2]
[356017353,1741800638238,-5181.28842,0.0001,2]
[356017541,1741800640221,-300.75060262,0.0001,2]
[356017547,1741800640268,-283.245,0.0001,2]
[356017549,1741800640280,-1193.5808724,0.0001,2]
[356017555,1741800640325,-4468201.23276684,0.0001,2]
[356017557,1741800640335,-2300.0,0.0001,3]
[356017559,1741800640345,-1453.96,0.0001,2]
[356017561,1741800640355,-5824733.05051336,0.0001,2]
[356017564,1741800640384,-10384.07962742,0.0001,2]
[356017567,1741800640398,-395.395,0.0001,2]
[356017569,1741800640410,-254.90114201,0.0001,2]
[356017571,1741800640426,-5301.70077546,0.0001,2]
[356017573,1741800640437,-1381.73076182,0.0001,2]
[356017578,1741800640481,-639.1,0.0001,2]
[356017581,1741800640493,-493.73122477,0.0001,2]
[356017585,1741800640522,-1438.0047324,0.0001,2]
[356017587,1741800640534,-900.72,0.0001,2]
[356017592,1741800640578,-11926.78008484,0.0001,2]
[356017594,1741800640590,-16543.2,0.0001,2]
[356017600,1741800640635,-1742633.63610038,0.0001,2]
[356017844,1741800643076,-27718.39352695,0.0001,2]
[356017847,1741800643087,-2973.6978847,0.0001,2]
[356017862,1741800643197,-1578.42685,0.0001,2]
[356017864,1741800643209,-9533.01187584,0.0001,2]
[356017866,1741800643220,-4430.0000001,0.0001,2]
[356017915,1741800643690,-1422.01714804,0.0001,2]
[356017917,1741800643702,-959.35755803,0.0001,2]
[356017920,1741800643718,-713.34428402,0.0001,2]
[356017922,1741800643729,-2994.11906816,0.0001,2]
[356017925,1741800643740,-1602.9272,0.0001,2]
[356017927,1741800643751,-1794.14245454,0.0001,2]
[356017987,1741800646129,-91700.0,0.0001,2]
[356017988,1741800646140,-3899.99999107,0.0001,2]
[356017989,1741800646392,-358.49499995,0.0001,2]
[356017998,1741801070115,-154.47261532,9.9e-05,2]
[356018002,1741801663431,264.53,8.219e-05,2]
[356018009,1741801832274,-603.39927237,9.8e-05,2]
[356018010,1741801832426,-1133.55417094,9.8e-05,2]
[356018011,1741801832438,-54.54455669,9.8e-05,2]
[356018012,1741801832448,-150.0,9.85e-05,2]
[356018013,1741801832460,-121.45544331,9.9e-05,2]
[356018014,1741801832471,-723.53013871,9.9e-05,2]
[356018015,1741801832535,-155.01441798,9.9e-05,2]
[356018016,1741801832544,-392.4968,9.9e-05,2]
[356018017,1741801832554,-86.40588311,9.928e-05,2]
[356018018,1741801832597,-63.59411689,9.928e-05,2]
[356018019,1741801832606,-150.0,9.973e-05,2]
[356018020,1741801832615,-79.79751323,9.998e-05,2]
[356018021,1741801832626,-874.06888894,9.998e-05,2]
[356018022,1741801832650,-60806.85820911,9.998e-05,2]
[356018023,1741801832659,-500.0,9.999e-05,2]
[356018024,1741801832669,-500.0,9.999e-05,2]
[356018025,1741801832678,-500.0,9.999e-05,2]
[356018026,1741801832687,-200.0,9.999e-05,2]
[356018027,1741801832696,-500.0,9.999e-05,2]
[356018029,1741801832706,-1236111.16823086,0.0001,2]
[356018031,1741801832717,-1075.9549519,0.0001,2]
[356018033,1741801832727,-4922.23199825,0.0001,2]
[356018077,1741801838560,-437.74276958,0.0001,2]
[356018079,1741801838571,-492.04005655,0.0001,2]
[356018082,1741801838582,-10899.05273941,0.0001,2]
[356018084,1741801838593,-1921.45432012,0.0001,2]
[356018086,1741801838604,-132468.46067536,0.0001,2]
[356018091,1741801838641,-1004.57485244,0.0001,2]
[356018093,1741801838652,-298.95838138,0.0001,2]
[356018272,1741801840327,-616.92,0.0001,2]
[356018279,1741801840381,-394.3849896,0.0001,2]
[356018281,1741801840392,-519.99999999,0.0001,2]
[356018283,1741801840403,-1920.0,0.0001,2]
[356018288,1741801840438,-1742633.63610038,0.0001,2]
[356018290,1741801840449,-4875.745,0.0001,2]
[356018292,1741801840461,-862.6599321,0.0001,2]
[356018295,1741801840472,-2041.41284595,0.0001,2]
[356018306,1741801840566,-117219.72196779,0.0001,2]
[356018308,1741801840578,-1122.54530546,0.0001,2]
[356018318,1741801840663,-919.40116331,0.0001,2]
[356018605,1741801843603,-596.13,0.0001,2]
[356018609,1741801843628,-258.4,0.0001,2]
[356018611,1741801843639,-826.79727951,0.0001,2]
[356018621,1741801843726,-817.1986,0.0001,2]
[356018623,1741801843737,-1604.00644119,0.0001,2]
[356018626,1741801843748,-6373.00058143,0.0001,2]
[356018700,1741801844452,-6076.0,0.0001,2]
[356018713,1741801844566,-16711.99245288,0.0001,2]
[356018715,1741801844577,-8800.06245329,0.0001,2]
[356018718,1741801844589,-33416.039998,0.0001,2]
[356018720,1741801844600,-153210.97130361,0.0001,2]
[356018722,1741801844611,-216490.20595866,0.0001,2]
[356018724,1741801844622,-1338.27063258,0.0001,2]
[356018728,1741801844647,-5498.14470342,0.0001,2]
[356018891,1741801846356,-705529.22140367,0.0001,2]
[356018916,1741801846574,-313.45516705,0.0001,2]
[356018918,1741801846586,-1444.89300382,0.0001,2]
[356018924,1741801846630,-991.19660092,0.0001,2]
[356019084,1741802164997,-550.0,9e-05,2]
[356019089,1741802763148,-150.0,9.566e-05,2]
[356019098,1741803031456,-137.01,9.566e-05,2]
[356019099,1741803031466,-150.0,9.683e-05,2]
[356019100,1741803031476,-181.5762432,9.8e-05,2]
[356019101,1741803031523,-1361.6217568,9.8e-05,2]
[356019102,1741803031532,-153.38623487,9.8e-05,2]
[356019103,1741803031542,-3153.8865,9.9e-05,2]
[356019104,1741803031551,-500.0,9.999e-05,2]
[356019105,1741803031561,-21142.8834684,0.0001,2]
[356019106,1741803031572,-1797.63703305,0.0001,2]
[356019107,1741803031615,-374.252,0.0001,2]
[356019108,1741803031627,-923.95,0.0001,2]
[356019109,1741803031638,-455.4,0.0001,2]
[356019110,1741803031662,-349.04632605,0.0001,2]
[356019111,1741803031719,-3288.60267064,0.0001,2]
[356019112,1741803031742,-362.5,0.0001,2]
[356019135,1741803037359,-622.5,0.0001,2]
[356019137,1741803037375,-856.6335725,0.0001,2]
[356019142,1741803037436,-18135.68698298,0.0001,2]
[356019143,1741803037447,-144875.23043773,0.0001,2]
[356019144,1741803037478,-320.14840894,0.0001,2]
[356019145,1741803037490,-411.93182001,0.0001,2]
[356019146,1741803037532,-627.06903604,0.0001,2]
[356019147,1741803037590,-1287.78133147,0.0001,2]
[356019402,1741803039826,-629.23687052,0.0001,2]
[356019408,1741803039851,-43403.84710121,0.0001,2]
[356019411,1741803039862,-1742633.63610038,0.0001,2]
[356019428,1741803039936,-0.00601255,0.0001,2]
[356019437,1741803039980,-200114.77973495,0.0001,2]
[356019441,1741803039992,-996.89388697,0.0001,2]
[356019449,1741803040030,-4374.6292333,0.0001,2]
[356019949,1741803042536,-422.54166336,0.0001,2]
[356020209,1741803043715,-10632.41659197,0.0001,2]
[356020212,1741803043726,-929.3718791,0.0001,2]
[356020216,1741803043737,-5766.17478965,0.0001,2]
[356020225,1741803043781,-7295.34874343,0.0001,2]
[356020230,1741803043792,-2745.4001,0.0001,2]
[356020233,1741803043803,-6130.49995,0.0001,2]
[356020471,1741803045533,-51100.38007642,0.0001,2]
[356020477,1741803045581,-7875.6997439,0.0001,2]
[356020479,1741803045592,-83532.80262713,0.0001,2]
[356020486,1741803045644,-15745.26846977,0.0001,2]
[356020493,1741803045706,-3152.050096,0.0001,2]
[356020495,1741803045717,-15610.0,0.0001,2]
[356020497,1741803045727,-13085.01566877,0.0001,2]
[356020500,1741803045739,-974.9999998,0.0001,2]
[356023396,1741803725524,310.89,8.219e-05,2]
[356023397,1741803742513,-156.94,9.307e-05,2]
[356023398,1741803830148,-6.53,9.307e-05,2]
[356023399,1741803830170,-143.47,9.307e-05,2]
[356023406,1741803930979,-200.0,9.307e-05,2]
[356023407,1741803932014,-350.0,9.307e-05,2]
[356023408,1741803955515,-159.71,9e-05,2]
[356023409,1741803969486,-354.74751683,9e-05,2]
[356023415,1741804155585,-51.93158251,9e-05,2]
[356023416,1741804155613,-550.0,9e-05,2]
[356023418,1741804155640,-1250.22723289,9.218e-05,2]
[356023433,1741804231637,-749.77276711,9.218e-05,2]
[356023434,1741804231646,-441.10674953,9.307e-05,2]
[356023435,1741804231658,-1190.95325047,9.307e-05,2]
[356023436,1741804231668,-150.09,9.307e-05,2]
[356023437,1741804231677,-200.0,9.308e-05,2]
[356023438,1741804231687,-241.03331691,9.789e-05,2]
[356023439,1741804231698,-58.96668309,9.789e-05,2]
[356023440,1741804231708,-839.06490373,9.79e-05,2]
[356023441,1741804231720,-25454.7911662,9.79e-05,2]
[356023442,1741804231730,-150.0,9.799e-05,2]
[356023443,1741804231739,-11164.75502065,9.8e-05,2]
[356023444,1741804231756,-8134.48177935,9.8e-05,2]
[356023445,1741804231765,-4996.65152165,9.8e-05,2]
[356023446,1741804231782,-709.85697835,9.8e-05,2]
[356023447,1741804231791,-23599.78127955,9.8e-05,2]
[356023448,1741804231802,-4783.99302045,9.8e-05,2]
[356023449,1741804231812,-829.7953,9.8e-05,2]
[356023450,1741804231821,-287.5668,9.8e-05,2]
[356023451,1741804231830,-750.43031904,9.8e-05,4]
[356023452,1741804231840,-2299.3068,9.8e-05,2]
[356023453,1741804231849,-153.4044419,9.873e-05,2]
[356023454,1741804231860,-4080.02793018,9.899e-05,2]
[356023455,1741804231869,-1730.141,9.9e-05,2]
[356023456,1741804231879,-14053.9829,9.9e-05,2]
[356023457,1741804231888,-10419.4894,9.9e-05,2]
[356023458,1741804231897,-1230.6217,9.9e-05,2]
[356023459,1741804231906,-22161.71296243,9.9e-05,2]
[356023460,1741804231924,-370.04022624,9.9e-05,2]
[356023461,1741804231960,-345.2004754,9.9e-05,2]
[356023462,1741804231972,-299093.28714264,9.9e-05,2]
[356023463,1741804231983,-2272.14979329,9.9e-05,2]
[356023464,1741804231992,-1023.2571,9.9e-05,2]
[356023466,1741804232002,-2542.75,9.931e-05,2]
[356023467,1741804232011,-23900.0,9.941e-05,2]
[356023469,1741804232020,-250.0,9.949e-05,2]
[356023471,1741804232030,-11933.13926879,0.0001,2]
[356023487,1741804232040,-585.17802667,0.0001,2]
[356023517,1741804237588,-889.68,0.0001,2]
[356023518,1741804237714,-2150.56877582,0.0001,2]
[356023519,1741804237832,-3366.08943692,0.0001,2]
[356023520,1741804237848,-1919.55266418,0.0001,2]
[356023521,1741804237905,-257.26787767,0.0001,2]
[356023692,1741804239655,-349.36301753,0.0001,2]
[356023700,1741804239724,-1592.29422424,0.0001,2]
[356023702,1741804239736,-1642078.41770331,0.0001,2]
[356023704,1741804239746,-200.0,0.0001,2]
[356023706,1741804239755,-200.0,0.0001,2]
[356023708,1741804239764,-100155.21839707,0.0001,2]
[356023786,1741804240708,-94.56640338,0.0001,2]
[356023788,1741804240724,-17886.14758375,0.0001,2]
[356023790,1741804240735,-357.05416649,0.0001,2]
[356023793,1741804240747,-2104.79837284,0.0001,2]
[356023796,1741804240772,-947.90812287,0.0001,2]
[356023809,1741804240886,-304.03316476,0.0001,2]
[356024007,1741804242651,-86612.82176592,0.0001,2]
[356024020,1741804242775,-784.65,0.0001,2]
[356024022,1741804242787,-41591.1690786,0.0001,2]
[356024023,1741804242833,-4234.92111886,0.0001,2]
[356024351,1741804245908,-2320.48,0.0001,2]
[356024353,1741804245917,-3363.3081209,0.0001,2]
[356024359,1741804245972,-52183.49804259,0.0001,2]
[356024361,1741804245984,-4734.32223925,0.0001,2]
[356024363,1741804245995,-457.98560668,0.0001,2]
[356024365,1741804246007,-505.61153223,0.0001,2]
[356024368,1741804246018,-302503.82895122,0.0001,2]
[356024370,1741804246030,-331727.92912985,0.0001,2]
[356024373,1741804246055,-669.385,0.0001,2]
[356024375,1741804246066,-3052.8983816,0.0001,2]
[356024377,1741804246078,-2212.500005,0.0001,2]
[356026532,1741804748580,335.84,8.219e-05,2]
[356026534,1741804908908,159.74,7.412e-05,2]
[356026536,1741805237663,2000.0,8.819e-05,2]
[356026537,1741805276613,1656.05,8.828e-05,2]
[356026538,1741805307560,1972.0,8.842e-05,2]
[356026539,1741805385431,250.0,8.819e-05,2]
[356026542,1741805431853,-160.66,9.141e-05,2]
[356026543,1741805431863,-160.66,9.198e-05,2]
[356026544,1741805431872,-447.32,9.251e-05,2]
[356026545,1741805431882,-160.66,9.255e-05,2]
[356026546,1741805431891,-165.12,9.259e-05,2]
[356026547,1741805431901,-1000.0,9.284e-05,2]
[356026548,1741805431911,-354.74,9.291e-05,2]
[356026549,1741805431923,-160.66,9.312e-05,2]
[356026550,1741805431933,-357.23,9.317e-05,2]
[356026551,1741805431942,-160.66,9.369e-05,2]
[356026552,1741805431951,-160.66,9.426e-05,2]
[356026553,1741805431962,-160.65,9.476e-05,2]
[356026554,1741805431972,-160.66,9.483e-05,2]
[356026555,1741805431982,-160.66,9.541e-05,2]
[356026556,1741805431991,-160.66,9.598e-05,2]
[356026557,1741805432000,-326.66041492,9.645e-05,2]
[356026558,1741805432010,-420.0,9.753e-05,2]
[356026559,1741805432020,-200.0,9.765e-05,2]
[356026560,1741805432030,-150.0,9.781e-05,2]
[356026561,1741805432039,-3382.755,9.8e-05,2]
[356026562,1741805432048,-7419.78458508,9.8e-05,2]
[356026563,1741805432060,-2388.92591492,9.8e-05,2]
[356026564,1741805432070,-500.0,9.8e-05,2]
[356026565,1741805432079,-5866.4939,9.9e-05,2]
[356026566,1741805432088,-1269.1177,9.9e-05,2]
[356026567,1741805432098,-1405.947,9.9e-05,2]
[356026568,1741805432107,-239.9517,9.9e-05,2]
[356026569,1741805432117,-2500.0,9.9e-05,2]
[356026570,1741805432127,-9872.18135351,9.971e-05,2]
[356026571,1741805432142,-14027.81864649,9.971e-05,2]
[356026572,1741805432151,-8627.0,9.973e-05,2]
[356026573,1741805432161,-262.23271651,9.973e-05,2]
[356026574,1741805432170,-500.0,9.999e-05,2]
[356026575,1741805432180,-933.73,9.999e-05,2]
[356026576,1741805432190,-326.66041492,9.999e-05,2]
[356026577,1741805432200,-500.0,9.999e-05,2]
[356026578,1741805432209,-505.16100156,9.999e-05,2]
[356026579,1741805432219,-500.0,9.999e-05,2]
[356026580,1741805432228,-500.0,9.999e-05,2]
[356026581,1741805432238,-758.0,0.0001,2]
[356026582,1741805432248,-531921.48583003,0.0001,2]
[356026583,1741805432285,-7135.35274793,0.0001,2]
[356026584,1741805432334,-8293.36643923,0.0001,2]
[356026589,1741805432385,-943.5,0.0001,2]
[356026590,1741805432396,-320.6,0.0001,2]
[356026612,1741805437836,-786.08,0.0001,2]
[356026613,1741805437847,-955.0,0.0001,2]
[356026614,1741805437887,-31185.5504714,0.0001,2]
[356026615,1741805438000,-1093.89438941,0.0001,2]